bitfinex-derivatives/quotes_ETHF0:USTF0_20250624
["timestamp","ask_amount","ask_price","bid_price","bid_amount"]
[1750783554053,48.612,2469.6,2469.0,1.3357]
[1750783554256,0.80956,2469.4,2469.0,1.3357]
[1750783555059,48.612,2469.6,2469.0,1.3357]
[1750783555359,0.80965,2469.1,2469.0,1.3357]
[1750783555561,0.80984,2468.6,2467.6,3.2078]
[1750783555759,50.63662,2468.5,2467.7,0.8101]
[1750783556063,0.80999,2468.1,2467.6,5.44142]
[1750783556354,48.612,2468.4,2467.9,3.2078]
[1750783556563,6.56343,2468.3,2467.1,3.2078]
[1750783556758,0.81021,2467.4,2467.2,1.4235]
[1750783557056,3.2078,2468.1,2467.2,1.4235]
[1750783557361,3.2078,2468.1,2467.4,3.2078]
[1750783557558,46.665,2468.3,2467.2,1.4235]
[1750783557559,95.274,2468.3,2467.5,3.2078]
[1750783557861,47.47493,2468.3,2467.8,4.01786]
[1750783558064,0.80999,2468.1,2467.9,1.4235]
[1750783558452,46.665,2468.3,2467.9,1.4235]
[1750783558657,51.8168,2468.7,2468.1,3.2078]
[1750783558957,0.80986,2468.5,2468.1,3.2078]
[1750783559259,0.80992,2468.3,2467.8,4.01786]
[1750783559460,0.80992,2468.3,2467.6,1.3006]
[1750783559461,5.23262,2468.3,2467.6,1.3006]
[1750783559664,0.81008,2467.8,2467.5,3.2078]
[1750783559866,1.4136,2468.2,2467.2,3.2078]
[1750783559867,3.2078,2467.9,2467.2,3.2078]
[1750783560076,0.81017,2467.6,2467.2,3.2078]
[1750783560359,3.2078,2467.9,2466.8,3.2078]
[1750783560360,5.23299,2467.9,2466.8,3.2078]
[1750783560559,3.2078,2467.9,2467.5,3.2078]
[1750783560872,0.81021,2467.4,2467.2,3.2078]
[1750783561166,0.81024,2467.3,2467.2,3.2078]
[1750783561361,2.02561,2467.3,2466.5,3.2078]
[1750783561571,3.2078,2466.8,2465.7,1.56760257]
[1750783561764,48.612,2466.7,2466.0,1.3566]
[1750783561956,48.612,2467.0,2466.5,3.2078]
[1750783562174,3.2078,2466.8,2466.0,4.5644]
[1750783562362,2.02634,2466.4,2465.7,3.2078]
[1750783562560,3.2078,2466.2,2465.7,3.2078]
[1750783562869,5.23457,2465.9,2465.3,1.3566]
[1750783563067,0.8109,2465.3,2465.0,3.2078]
[1750783563364,1.3957,2465.8,2465.0,3.2078]
[1750783563562,3.2078,2465.7,2465.0,3.2078]
[1750783563764,1.3957,2465.6,2465.0,3.2078]
[1750783563954,1.3957,2465.6,2464.7,3.2078]
[1750783563955,3.2078,2465.4,2464.7,3.2078]
[1750783564157,3.2078,2465.1,2464.1,3.2078]
[1750783564360,0.81108,2464.8,2464.1,3.2078]
[1750783564571,46.675,2465.3,2464.7,3.2078]
[1750783564861,3.2078,2465.8,2465.0,3.2078]
[1750783565060,3.2078,2465.8,2464.8,1.363]
[1750783565061,3.2078,2465.6,2464.8,1.363]
[1750783565259,1.3831,2465.7,2465.1,3.2078]
[1750783565470,40.8,2466.0,2465.1,3.2078]
[1750783565660,3.2078,2466.5,2465.9,3.2078]
[1750783565855,46.693,2467.0,2466.2,3.2078]
[1750783566056,0.81042,2466.8,2466.2,4.0184]
[1750783566368,4.5909,2466.9,2466.2,3.2078]
[1750783566763,46.693,2467.0,2466.1,3.2078]
[1750783566961,1.3831,2466.9,2466.1,3.2078]
[1750783567160,46.693,2467.0,2466.1,3.2078]
[1750783567362,49.9008,2467.0,2466.3,3.2078]
[1750783567671,0.81046,2466.7,2466.3,3.2078]
[1750783567867,1.3415,2466.6,2465.9,3.2078]
[1750783568163,5.35979,2466.6,2465.9,4.01848]
[1750783568369,4.01833,2466.5,2465.9,3.2078]
[1750783568564,2.15204,2466.4,2465.9,3.2078]
[1750783568767,0.81067,2466.0,2465.9,3.2078]
[1750783569068,3.2078,2466.1,2465.5,3.2078]
[1750783569269,4.01855,2465.8,2465.2,3.2078]
[1750783569464,1.3415,2465.7,2465.4,0.81085]
[1750783569773,1.3415,2465.7,2465.3,0.81087]
[1750783569970,2.15228,2465.7,2465.2,3.2078]
[1750783570266,2.15228,2465.7,2464.4,3.2078]
[1750783570267,3.2078,2465.5,2464.4,3.2078]
[1750783570466,3.2078,2464.8,2464.2,3.2078]
[1750783570662,1.3709,2465.4,2464.5,3.2078]
[1750783570663,3.2078,2465.1,2464.5,3.2078]
[1750783571070,49.9028,2465.2,2464.5,4.01894]
[1750783571268,3.2078,2465.5,2465.3,0.81088]
[1750783571457,46.704,2466.3,2465.9,0.81067]
[1750783571663,4.5787,2466.6,2465.8,3.2078]
[1750783571861,4.5787,2466.6,2465.9,1.4085]
[1750783572264,4.5787,2466.6,2466.1,3.2078]
[1750783572465,49.9118,2466.9,2466.1,3.2078]
[1750783572661,46.704,2466.9,2466.8,0.8104]
[1750783573064,46.704,2466.9,2466.7,3.2078]
[1750783573268,46.704,2466.9,2466.8,0.8104]
[1750783573475,3.2078,2468.1,2466.7,3.2078]
[1750783573668,46.704,2468.5,2467.9,3.2078]
[1750783573973,1.3873,2468.4,2468.0,0.81]
[1750783574271,1.3873,2468.4,2468.1,0.80996]
[1750783574565,3.2078,2468.7,2467.9,3.2078]
[1750783574771,1.3873,2468.3,2467.9,3.2078]
[1750783575370,3.2078,2468.0,2467.1,3.2078]
[1750783575676,3.2078,2467.7,2466.7,1.3281]
[1750783575969,3.2078,2467.7,2467.2,3.2078]
[1750783576270,3.2078,2467.7,2466.7,1.3281]
[1750783576572,1.3558,2467.6,2466.7,1.3281]
[1750783576762,0.81029,2467.2,2466.6,3.2078]
[1750783576975,12.44736968,2466.7,2465.3,3.2078]
[1750783577164,3.2078,2466.0,2464.8,4.6298]
[1750783577365,0.81082,2465.6,2464.8,4.6298]
[1750783577569,0.81074,2465.8,2464.8,13.86936968]
[1750783577767,1.3558,2465.9,2465.4,3.2078]
[1750783578172,3.2078,2466.0,2465.4,3.2078]
[1750783578571,2.02684,2465.8,2464.9,1.422]
[1750783578775,3.2078,2465.4,2464.5,0.81116]
[1750783578972,0.81094,2465.2,2464.6,3.2078]
[1750783579280,3.2078,2465.4,2464.6,4.6298]
[1750783579281,0.81096,2465.1,2464.6,4.6298]
[1750783579504,0.81095,2465.2,2464.7,1.3632]
[1750783579678,3.2078,2465.4,2464.7,1.3632]
[1750783579871,0.81106,2464.8,2464.7,1.3632]
[1750783580174,0.81106,2464.8,2464.4,3.2078]
[1750783580175,3.2078,2465.1,2464.4,3.2078]
[1750783580366,0.81116,2464.5,2464.1,3.2078]
[1750783580682,4.531,2465.0,2464.1,0.81128]
[1750783580971,0.81103,2464.9,2464.2,1.3632]
[1750783581169,0.81106,2464.8,2464.2,2.17446]
[1750783581368,1.3232,2464.9,2464.2,2.17443]
[1750783581570,51.93282,2465.6,2464.6,3.2078]
[1750783581879,51.93282,2465.6,2464.7,4.571]
[1750783581880,49.9058,2465.6,2464.7,4.571]
[1750783582475,0.81095,2465.2,2465.0,3.2078]
[1750783582679,4.05322,2466.1,2465.0,3.2078]
[1750783582680,3.2078,2466.3,2465.1,9.23956968]
[1750783582869,3.36285,2466.4,2465.4,3.2078]
[1750783583068,3.2078,2466.5,2465.4,3.2078]
[1750783583069,5.23407,2466.5,2465.4,3.2078]
[1750783583269,5.23407,2466.5,2465.8,3.2078]
[1750783583270,3.2078,2466.5,2465.8,3.2078]
[1750783583666,3.2078,2466.5,2465.9,0.81067]
[1750783583866,3.2078,2466.5,2465.8,3.2078]
[1750783583867,0.81065,2466.1,2465.8,3.2078]
[1750783584072,3.2078,2466.5,2465.5,3.2078]
[1750783584375,0.81067,2466.0,2465.5,3.2078]
[1750783584573,0.81066,2466.1,2465.5,3.2078]
[1750783584769,3.2078,2466.2,2465.5,3.2078]
[1750783585070,3.2078,2466.5,2465.6,0.8108]
[1750783585265,3.2078,2466.5,2465.5,4.01861]
[1750783585266,0.81062,2466.2,2465.5,4.01861]
[1750783585467,0.81063,2466.2,2465.5,3.2078]
[1750783585673,0.81059,2466.3,2465.5,3.2078]
[1750783585874,0.81061,2466.2,2465.6,0.81077]
[1750783586073,3.2078,2466.5,2465.5,3.2078]
[1750783586277,0.8108,2465.6,2465.3,3.2078]
[1750783586573,4.0524,2466.6,2464.4,2.23240257]
[1750783586574,0.81062,2466.2,2465.2,3.2078]
[1750783586775,3.2078,2466.0,2465.6,0.81079]
[1750783586975,0.81071,2465.9,2465.6,1.3958]
[1750783587278,2.02639,2466.4,2465.2,1.3958]
[1750783587279,3.2078,2466.3,2465.2,1.3958]
[1750783587475,0.81065,2466.1,2465.6,2.20659]
[1750783587680,0.81067,2466.0,2465.6,1.3958]
[1750783587982,0.81063,2466.2,2465.6,1.3958]
[1750783588174,3.2078,2466.3,2465.6,1.3958]
[1750783588372,48.659,2466.6,2465.6,1.3958]
[1750783588573,87.507,2466.9,2466.1,3.2078]
[1750783588574,46.707,2466.9,2466.1,3.2078]
[1750783588778,0.8106,2466.2,2466.1,3.2078]
[1750783589072,3.2078,2466.2,2465.6,3.2078]
[1750783589271,0.81076,2465.7,2465.6,3.2078]
[1750783589584,3.2078,2466.1,2465.6,3.2078]
[1750783589877,0.81074,2465.8,2465.6,3.2078]
[1750783590569,0.81059,2466.3,2465.9,0.81069]
[1750783590769,0.7103,2467.0,2466.3,0.81056]
[1750783590969,0.81051,2466.5,2466.2,3.2078]
[1750783591176,0.7103,2467.0,2466.3,1.3995]
[1750783591371,0.81042,2466.8,2466.3,1.3995]
[1750783591569,48.73295,2466.9,2466.3,1.3995]
[1750783591780,0.81064,2466.1,2465.5,3.2078]
[1750783591975,5.2339,2466.7,2465.6,1.3421]
[1750783592178,0.81052,2466.5,2466.2,3.2078]
[1750783592483,0.81053,2466.5,2465.9,3.2078]
[1750783592670,46.707,2466.9,2466.2,3.2078]
[1750783593184,0.81045,2466.7,2466.3,0.81055]
[1750783593380,0.81045,2466.7,2466.4,1.3421]
[1750783593585,0.81047,2466.6,2466.4,1.3421]
[1750783593772,0.81046,2466.7,2466.4,1.3421]
[1750783594083,46.707,2466.9,2466.4,4.5499]
[1750783594380,0.81049,2466.6,2466.4,3.2078]
[1750783594583,46.707,2466.9,2466.4,3.2078]
[1750783595277,0.81049,2466.6,2466.4,3.2078]
[1750783595474,0.8105,2466.5,2466.4,3.2078]
[1750783595674,46.707,2466.9,2466.4,3.2078]
[1750783595880,46.707,2466.9,2465.9,2.02675]
[1750783595881,47.51739,2466.9,2466.7,3.2078]
[1750783596074,47.51737,2466.9,2466.7,3.2078]
[1750783596379,0.8105,2466.5,2466.4,3.2078]
[1750783596575,0.81049,2466.6,2466.4,3.2078]
[1750783597069,46.707,2466.9,2466.4,8.2078]
[1750783597380,0.81047,2466.6,2466.5,1.3791]
[1750783597579,2.02612,2466.7,2465.9,3.2078]
[1750783597777,0.81057,2466.3,2466.0,1.3173]
[1750783598083,0.81057,2466.3,2466.2,3.2078]
[1750783598284,2.0262,2466.6,2465.9,3.2078]
[1750783598484,2.02628,2466.5,2465.9,3.2078]
[1750783598678,3.2078,2466.7,2466.0,2.02667]
[1750783598875,0.81036,2467.0,2466.6,0.81045]
[1750783599080,3.2078,2467.2,2466.7,4.5251]
[1750783599379,3.2078,2467.2,2466.9,0.81037]
[1750783599578,0.81033,2467.1,2466.8,1.3173]
[1750783599773,0.81031,2467.1,2466.8,1.3173]
[1750783599979,0.81031,2467.1,2466.8,2.1277]
[1750783600179,0.81025,2467.3,2467.0,4.01812]
[1750783600379,0.8103,2467.1,2467.0,3.2078]
[1750783600681,0.8103,2467.2,2467.0,3.2078]
[1750783600877,0.81035,2467.0,2466.8,1.3173]
[1750783601082,0.81039,2466.9,2466.7,3.2078]
[1750783601684,1.3604,2467.3,2466.7,3.2078]
[1750783602079,0.81037,2467.0,2466.7,3.2078]
[1750783602279,3.2078,2466.9,2466.4,3.2078]
[1750783602485,2.02626,2466.5,2465.9,3.2078]
[1750783602684,1.3604,2466.9,2466.0,2.02667]
[1750783602881,0.81053,2466.5,2466.2,0.8106]
[1750783603079,0.81068,2466.0,2465.9,3.2078]
[1750783603283,0.81059,2466.3,2465.9,0.81067]
[1750783603485,46.702,2466.7,2465.6,3.2078]
[1750783603691,46.702,2466.7,2466.0,3.2078]
[1750783603889,46.702,2466.7,2466.1,1.3789]
[1750783604184,47.51247,2466.7,2466.3,0.81057]
[1750783604386,47.51245,2466.7,2466.2,0.81058]
[1750783604688,3.2078,2467.2,2466.3,1.3789]
[1750783604988,0.81023,2467.4,2466.8,3.2078]
[1750783605185,3.2078,2467.1,2466.5,3.2078]
[1750783605688,0.81047,2466.6,2466.5,3.2078]
[1750783605877,3.2078,2466.7,2466.1,3.2078]
[1750783606189,0.81051,2466.5,2466.1,4.01841]
[1750783606388,0.8105,2466.5,2466.1,4.01841]
[1750783606590,0.8106,2466.2,2466.1,3.2078]
[1750783606789,4.01832,2466.5,2466.1,3.2078]
[1750783606991,0.81058,2466.3,2466.1,3.2078]
[1750783607186,0.81059,2466.3,2466.1,3.2078]
[1750783607493,0.8106,2466.2,2466.1,3.2078]
[1750783607689,0.81072,2465.9,2465.6,3.2078]
[1750783607990,5.23458,2465.9,2465.3,3.2078]
[1750783608187,5.23458,2465.9,2465.0,3.2078]
[1750783608188,3.2078,2465.6,2465.0,3.2078]
[1750783608386,0.81091,2465.3,2465.0,3.2078]
[1750783608586,1.415,2465.5,2465.0,4.01877]
[1750783608793,0.81091,2465.3,2465.0,3.2078]
[1750783609092,3.2078,2465.6,2465.0,3.2078]
[1750783609392,46.704,2465.7,2465.5,0.81082]
[1750783609589,47.51477,2465.7,2465.3,3.2078]
[1750783609779,47.51479,2465.7,2465.3,3.2078]
[1750783609985,1.3212,2465.6,2465.3,4.0187]
[1750783610186,46.704,2465.7,2465.3,3.2078]
[1750783610385,46.704,2465.7,2465.4,0.81086]
[1750783610796,46.704,2465.7,2465.0,3.2078]
[1750783610993,46.704,2465.7,2465.4,0.81085]
[1750783611195,46.704,2465.7,2465.3,3.2078]
[1750783611490,1.3212,2465.6,2465.3,3.2078]
[1750783611889,1.3212,2465.6,2465.3,4.01867]
[1750783612090,1.3212,2465.6,2465.3,3.2078]
[1750783612388,0.81068,2466.0,2465.3,5.235]
[1750783612592,48.0302,2466.4,2465.7,0.81076]
[1750783612789,0.8107,2466.0,2465.6,4.01859]
[1750783612990,0.81069,2466.0,2465.6,3.2078]
[1750783613195,1.3482,2465.9,2465.6,3.2078]
[1750783613501,0.81057,2466.3,2465.6,3.2078]
[1750783613794,0.81063,2466.2,2465.9,3.2078]
[1750783614295,1.3482,2466.3,2465.9,3.2078]
[1750783614498,0.81062,2466.2,2465.9,3.2078]
[1750783614797,0.81063,2466.1,2465.9,3.2078]
[1750783614998,0.81065,2466.1,2465.9,3.2078]
[1750783615189,0.81062,2466.2,2465.9,3.2078]
[1750783615390,0.81061,2466.2,2465.9,3.2078]
[1750783615590,0.81065,2466.1,2465.9,3.2078]
[1750783615796,0.81067,2466.0,2465.9,3.2078]
[1750783615995,0.81067,2466.0,2465.6,3.2078]
[1750783616192,3.2078,2466.3,2465.6,3.2078]
[1750783616394,0.81075,2465.8,2465.6,3.2078]
[1750783616604,0.81076,2465.7,2465.6,3.2078]
[1750783616795,0.81072,2465.9,2465.6,3.2078]
[1750783617093,5.23426,2466.3,2465.6,3.2078]
[1750783617094,2.19447,2466.0,2465.6,3.2078]
[1750783617303,0.81062,2466.2,2465.9,0.81069]
[1750783617803,0.81062,2466.2,2465.8,0.81071]
[1750783618103,0.81063,2466.1,2465.8,0.81071]
[1750783618402,0.81063,2466.1,2465.7,2.12286]
[1750783618597,46.709,2466.4,2466.1,0.81062]
[1750783618897,46.709,2466.4,2466.3,4.01837]
[1750783619200,46.709,2466.4,2466.0,3.2078]
[1750783619404,46.709,2466.4,2466.1,0.81063]
[1750783619602,3.2078,2466.9,2466.5,0.81049]
[1750783619799,3.2078,2466.9,2466.4,0.8105]
[1750783619994,0.81047,2466.6,2466.5,1.338]
[1750783620202,3.2078,2466.9,2466.5,1.338]
[1750783620400,3.2078,2468.0,2466.7,3.2078]
[1750783620701,3.2078,2467.7,2466.7,3.2078]
[1750783620897,46.712,2467.9,2467.4,3.2078]
[1750783621096,0.81015,2467.6,2467.4,3.2078]
[1750783621291,0.81027,2467.3,2467.0,3.2078]
[1750783621504,52.6394,2467.3,2466.3,4.77540257]
[1750783621701,3.2078,2466.9,2466.1,1.56760257]
[1750783622002,2.0261,2466.7,2466.0,3.2078]
[1750783622304,0.81073,2465.8,2465.7,3.2078]
[1750783622895,2.02682,2465.9,2465.4,3.2078]
[1750783623096,0.81091,2465.3,2465.0,4.77540257]
[1750783623295,5.23482,2465.6,2464.9,1.56760257]
[1750783623495,1.3689,2465.5,2464.7,1.56760257]
[1750783623706,0.81107,2464.8,2464.6,3.2078]
[1750783623898,2.02733,2465.2,2464.4,1.56760257]
[1750783624095,6.62080598,2465.8,2464.4,3.2078]
[1750783624096,52.57529,2465.0,2464.4,3.2078]
[1750783624296,0.81116,2464.5,2464.4,3.2078]
[1750783624600,0.81128,2464.2,2463.7,4.77540257]
[1750783624797,2.02766,2464.8,2464.0,3.2078]
[1750783624798,1.3689,2464.4,2464.0,3.2078]
[1750783625107,1.3689,2464.4,2463.7,3.2078]
[1750783625403,1.3689,2464.4,2464.3,3.2078]
[1750783625601,0.81119,2464.4,2464.3,3.2715515]
[1750783625999,0.81119,2464.4,2464.3,0.0637515]
[1750783626600,0.81119,2464.4,2464.0,3.2078]
[1750783626601,0.81127,2464.2,2464.0,1.3015515]
[1750783626800,0.81128,2464.2,2464.0,1.3015515]
[1750783627005,1.3258,2464.3,2464.0,1.3015515]
[1750783627207,3.2078,2464.6,2464.0,1.3015515]
[1750783627208,0.81118,2464.5,2464.0,1.3015515]
[1750783627408,1.3258,2464.5,2464.0,1.3015515]
[1750783627709,0.81126,2464.2,2464.0,1.3015515]
[1750783627902,0.81129,2464.1,2464.0,1.3015515]
[1750783628107,1.3258,2464.5,2464.0,1.3015515]
[1750783628406,0.81125,2464.3,2464.0,1.3015515]
[1750783628704,1.3258,2464.5,2464.2,0.0637515]
[1750783628908,4.01903,2464.3,2464.2,0.0637515]
[1750783629405,9.01903,2464.3,2464.2,0.0637515]
[1750783629701,3.2078,2464.3,2463.8,0.08117542]
[1750783629902,1.3258,2464.5,2464.1,3.2078]
[1750783630096,2.13697,2464.5,2464.0,0.81131]
[1750783630310,46.703,2465.1,2464.4,3.2078]
[1750783630511,46.703,2465.1,2464.5,2.02791]
[1750783630707,46.703,2465.1,2464.7,3.2078]
[1750783630905,46.703,2465.1,2464.8,1.2953]
[1750783631101,46.703,2465.1,2464.8,2.10633]
[1750783631407,46.703,2465.1,2464.8,1.2953]
[1750783631709,46.703,2465.1,2464.3,3.2078]
[1750783631910,1.3331,2465.0,2464.3,3.2078]
[1750783632109,49.9108,2465.1,2464.7,3.2078]
[1750783632414,0.81101,2465.0,2464.7,3.2078]
[1750783632710,0.81108,2464.8,2464.4,4.6142]
[1750783632904,49.9108,2465.1,2464.4,4.6142]
[1750783633102,51.2439,2465.1,2464.4,3.2078]
[1750783633300,2.02761,2464.9,2464.4,3.2078]
[1750783633508,49.9108,2465.1,2464.7,3.2078]
[1750783633709,3.2078,2465.5,2465.0,3.2078]
[1750783634009,46.726,2465.9,2465.5,0.81083]
[1750783634203,46.726,2465.9,2465.5,0.81081]
[1750783634204,47.5367,2465.9,2465.5,0.81081]
[1750783634401,0.81075,2465.8,2465.5,1.4078]
[1750783634905,3.2078,2466.4,2465.7,3.2078]
[1750783635307,0.81067,2466.0,2465.5,1.4078]
[1750783635509,0.81071,2465.9,2465.5,2.21861]
[1750783636108,1.3681,2466.3,2465.5,1.4078]
[1750783636303,2.02651,2466.2,2465.5,1.4078]
[1750783636512,0.81067,2466.0,2465.5,1.4078]
[1750783636700,4.5759,2466.1,2465.4,3.2078]
[1750783636906,0.81082,2465.6,2465.4,3.2078]
[1750783637106,2.02678,2465.9,2465.1,4.6156]
[1750783637406,4.5759,2466.1,2465.1,4.6156]
[1750783637407,1.3666,2465.8,2465.1,4.6156]
[1750783637604,1.3666,2465.8,2465.5,0.81081]
[1750783637605,0.81074,2465.8,2465.5,0.81081]
[1750783637805,0.81074,2465.8,2465.4,3.2078]
[1750783637806,0.81077,2465.7,2465.4,4.01865]
[1750783638009,0.81078,2465.7,2465.4,3.2078]
[1750783638213,50.7784,2466.1,2465.4,3.2078]
[1750783638414,52.80503,2466.1,2465.5,1.4038]
[1750783638616,0.81075,2465.8,2465.5,1.4038]
[1750783639013,50.7784,2466.1,2465.1,3.2078]
[1750783639313,0.81075,2465.8,2465.1,4.6116]
[1750783639503,52.80501,2466.1,2465.1,4.6116]
[1750783639708,3.2078,2465.8,2465.1,3.2078]
[1750783639916,3.2078,2465.8,2464.7,2.35140386]
[1750783639917,0.81101,2465.0,2464.7,3.2078]
[1750783640210,46.72304,2464.9,2464.7,3.2078]
[1750783640412,0.81108,2464.8,2464.5,1.4038]
[1750783640653,0.81123,2464.3,2464.2,1.3209]
[1750783640803,3.2078,2464.5,2464.1,3.2078]
[1750783641016,3.2078,2464.5,2463.8,3.28897542]
[1750783641017,3.2078,2464.2,2463.8,3.28897542]
[1750783641215,0.81131,2464.1,2463.8,3.28897542]
[1750783641412,47.1292,2464.4,2463.8,3.28897542]
[1750783641612,0.81127,2464.2,2463.8,4.10035542]
[1750783642116,1.3302,2464.4,2463.8,4.10035542]
[1750783642117,0.81136,2463.9,2463.8,3.28897542]
[1750783642314,47.0012,2464.1,2463.8,3.28897542]
[1750783642512,47.0012,2464.1,2463.9,0.81133]
[1750783642715,47.0012,2464.1,2463.8,4.10034542]
[1750783642918,0.81133,2464.0,2463.8,3.28897542]
[1750783643120,47.0012,2464.1,2463.8,3.28897542]
[1750783643318,1.3302,2464.1,2463.8,3.28897542]
[1750783643510,45.451,2464.0,2463.8,3.28897542]
[1750783643711,45.451,2464.0,2463.9,0.81136]
[1750783644010,45.451,2464.0,2463.8,3.28897542]
[1750783644222,45.459,2463.9,2463.8,4.10036542]
[1750783644510,45.459,2463.9,2463.8,3.28897542]
[1750783644716,45.378,2463.9,2463.8,3.28897542]
[1750783645011,45.378,2463.9,2463.8,3.2078]
[1750783645214,0.81141,2463.8,2463.5,3.2078]
[1750783645518,50.46926,2463.9,2463.1,3.2078]
[1750783645710,0.81159,2463.2,2463.1,3.2078]
[1750783645910,0.8115,2463.5,2463.1,3.2078]
[1750783646115,0.81153,2463.4,2463.2,1.379]
[1750783646311,45.157,2463.6,2463.1,3.2078]
[1750783646505,45.157,2463.6,2462.7,6.9075144]
[1750783646506,0.81162,2463.1,2462.8,5.3985]
[1750783646710,2.02884,2463.4,2462.8,4.5868]
[1750783646906,2.02889,2463.3,2462.8,3.2078]
[1750783647212,0.81172,2462.8,2462.7,0.27208202]
[1750783647413,45.84772,2462.8,2462.7,0.27208202]
[1750783647916,0.81172,2462.8,2462.7,0.27208202]
[1750783648111,3.2078,2463.5,2462.7,0.27208202]
[1750783648318,4.0562,2464.3,2463.1,3.2078]
[1750783648319,1.3965,2463.7,2463.1,3.2078]
[1750783648719,44.882,2463.6,2463.2,0.81158]
[1750783648920,44.844,2463.7,2463.1,4.01941]
[1750783649113,2.02864,2463.6,2463.1,3.2078]
[1750783649314,0.81168,2462.9,2462.8,4.4973]
[1750783649716,0.81172,2462.8,2462.7,0.27208202]
[1750783649922,3.2078,2463.3,2462.7,0.27208202]
[1750783650121,0.81165,2463.1,2462.8,4.01951]
[1750783650319,0.81165,2463.0,2462.9,1.2895]
[1750783650716,0.81164,2463.1,2462.9,1.2895]
[1750783650919,3.2078,2463.3,2462.7,0.27208202]
[1750783651113,0.81166,2463.0,2462.8,1.2895]
[1750783651724,47.7468,2463.3,2462.8,4.4973]
[1750783651927,0.81158,2463.2,2462.8,5.309]
[1750783652120,0.81162,2463.1,2462.8,5.309]
[1750783652321,47.7468,2463.3,2462.8,4.4973]
[1750783652623,44.422,2463.2,2462.9,0.81168]
[1750783652929,45.23359,2463.2,2463.0,1.3656]
[1750783653123,3.2078,2463.3,2463.0,2.17724]
[1750783653124,47.5998,2463.3,2463.0,2.17724]
[1750783653428,0.81161,2463.2,2463.0,1.3656]
[1750783653724,0.81162,2463.1,2462.8,4.01949]
[1750783653928,0.81161,2463.2,2462.8,5.38509]
[1750783654131,47.5998,2463.3,2462.8,4.5734]
[1750783654331,0.81164,2463.1,2462.8,5.3851]
[1750783654625,0.81163,2463.1,2462.8,5.38509]
[1750783655232,0.81163,2463.1,2462.8,5.4488415]
[1750783655427,47.5998,2463.3,2462.8,4.6371515]
[1750783655731,0.81165,2463.1,2462.8,5.4488615]
[1750783656128,44.77557,2463.3,2462.8,4.6371515]
[1750783656329,0.81159,2463.2,2463.0,0.81163]
[1750783656724,2.0288,2463.4,2462.8,4.6371515]
[1750783656928,43.9,2463.3,2462.8,4.6371515]
[1750783657123,0.81164,2463.1,2462.9,0.81167]
[1750783657319,3.44605,2463.3,2462.8,4.6371515]
[1750783657519,0.81166,2463.0,2462.8,5.4488515]
[1750783657720,0.81168,2462.9,2462.8,5.4488515]
[1750783657922,0.81158,2463.2,2462.8,5.4488515]
[1750783658122,3.44605,2463.3,2462.9,0.81168]
[1750783658123,4.6249,2463.3,2462.9,0.81168]
[1750783658328,0.81163,2463.1,2462.9,0.81168]
[1750783658930,48.2999,2463.3,2462.9,0.81168]
[1750783659132,0.81161,2463.2,2463.0,0.81164]
[1750783659330,0.8116,2463.2,2463.0,0.81163]
[1750783659828,45.0921,2463.3,2462.8,4.6101515]
[1750783660434,0.81168,2462.9,2462.8,3.2715515]
[1750783660630,43.432,2463.2,2462.8,3.2715515]
[1750783660836,0.81163,2463.1,2462.9,0.81166]
[1750783661033,43.399,2463.5,2463.2,0.81155]
[1750783661336,3.2078,2463.7,2463.3,0.81154]
[1750783661532,3.2078,2463.7,2463.1,3.2078]
[1750783661533,1.3365,2463.6,2463.1,3.2078]
[1750783661740,0.8114,2463.8,2463.6,0.81143]
[1750783661930,0.81146,2463.6,2463.2,1.4051]
[1750783662125,46.73,2463.9,2463.2,3.43406]
[1750783662331,4.5443,2464.3,2463.5,2.02867]
[1750783662530,3.2078,2464.6,2463.8,2.02846]
[1750783662731,3.2078,2465.2,2464.0,3.2078]
[1750783662930,3.2078,2465.2,2463.9,8.04053238]
[1750783662931,0.81101,2465.0,2464.6,0.8111]
[1750783663134,0.81104,2464.9,2464.5,0.81114]
[1750783663333,3.2078,2465.2,2464.3,3.2078]
[1750783663334,3.2078,2465.2,2464.6,1.4051]
[1750783663535,49.9688,2465.5,2464.9,3.2078]
[1750783663737,3.2078,2465.4,2464.6,3.2078]
[1750783664034,0.81103,2464.9,2464.6,3.2078]
[1750783664238,1.3365,2465.3,2464.6,3.2078]
[1750783664440,0.81098,2465.1,2464.6,3.2078]
[1750783664640,4.6116,2465.0,2464.8,0.81105]
[1750783664844,4.6116,2465.0,2464.3,3.2078]
[1750783665047,0.81104,2464.9,2464.5,0.81113]
[1750783665347,2.21485,2464.9,2464.4,0.81116]
[1750783665746,2.21485,2464.9,2463.9,3.2078]
[1750783665747,3.2078,2464.5,2463.9,3.2078]
[1750783666046,1.4038,2464.4,2464.0,0.81132]
[1750783666242,44.2598,2464.4,2463.9,4.01914]
[1750783666545,3.2078,2464.0,2463.4,1.56760257]
[1750783666744,4.6116,2463.9,2463.3,3.2078]
[1750783666949,3.2078,2463.5,2463.0,1.3265]
[1750783667149,42.754,2463.6,2463.0,1.3265]
[1750783667344,0.8115,2463.5,2463.0,1.3265]
[1750783667545,0.81151,2463.5,2463.0,1.3265]
[1750783667838,1.3149,2463.5,2463.0,3.2078]
[1750783668035,0.81169,2462.9,2462.7,0.27208202]
[1750783668240,0.81167,2463.0,2462.7,0.27208202]
[1750783668438,3.2078,2463.1,2462.7,0.27208202]